[Event "LR Global GM Aspirant-1 2024"]
[Site "Dhaka"]
[Date "2024.02.16"]
[Round "5.2"]
[White "Mayank Chakraborty"]
[Black "Siddharth, Jagadeesh"]
[Result "1/2-1/2"]
[ECO "A15"]
[WhiteElo "2409"]
[BlackElo "2457"]
[Annotator "TA"]
[PlyCount "113"]
[EventDate "2024.02.12"]
[EventType "tourn"]
[EventCountry "BAN"]
[SourceTitle "playchess.com"]
[Source "ChessBase"]
[SourceQuality "1"]
[TimeControl "5400+30"]

{[%evp 40,113,-16,-16,16,-24,-37,-33,269,258,441,425,371,339,336,328,218,195,189,190,199,116,99,114,93,81,124,141,129,92,93,75,74,60,75,75,72,41,83,75,99,96,118,118,178,99,99,84,84,84,84,84,84,84,84,84,84,84,84,84,84,84,84,12,12,12,12,12,12,12,12,12,12,12,12,-8]} 1. Nf3 {[%emt 0:00:02]} Nf6 {[%emt 0:00:28]} 2. c4 {[%emt 0:00:05]} g6 {[%emt 0:00:08]} 3. b4 {[%emt 0:00:05]} Bg7 {[%emt 0:07:12]} 4. Bb2 {[%emt 0:00:06]} b6 {[%emt 0:01:36]} 5. g3 {[%emt 0:02:29]} Bb7 {[%emt 0:00:09]} 6. Bg2 {[%emt 0:00:07]} O-O {[%emt 0:00:05]} 7. O-O {[%emt 0:00:22]} c5 {[%emt 0:03:10]} 8. bxc5 {[%emt 0:10:42]} bxc5 {[%emt 0:00:19]} 9. d3 {[%emt 0:01:54] A15: English Opening: 1...Nf6.} d6 {[%emt 0:00:05]} 10. Nbd2 {[%emt 0:00:41]} Nbd7 {[%emt 0:03:47]} 11. e4 $146 {[%emt 0:05:45]} ({Predecessor:} 11. Qa4 Nb6 12. Qa3 Bc6 13. Rab1 Qc7 14. Ba1 Rfb8 15. Nb3 a5 16. Nbd2 Na4 17. Rxb8+ Rxb8 {½-½ Mchedlishvili,M (2607)-Adly,A (2620) Olympiad-43 Batumi 2018 (10.2)}) 11... Ne8 {[%emt 0:06:12]} 12. Qc2 {[%emt 0:02:04]} e5 {[%emt 0:09:19]} 13. Ne1 {[%emt 0:07:01]} Nc7 {[%emt 0:01:54]} 14. f4 {[%emt 0:02:03]} Ne6 {[%emt 0:00:13]} 15. Nb3 {[%emt 0:09:12]} a5 {[%emt 0:02:21]} 16. f5 {[%emt 0:00:31]} Nd4 {[%emt 0:00:09]} 17. Nxd4 {[%emt 0:00:06]} cxd4 {[%emt 0:02:19]} 18. Bc1 {[%emt 0:04:36]} Nc5 {[%emt 0:03:42]} 19. h4 {[%emt 0:06:13]} Bc6 {[%emt 0:08:47]} 20. Bh3 {[%emt 0:04:53]} Rb8 {[%emt 0:04:03]} 21. Kh2 {[%emt 0:08:50]} a4 {[%emt 0:01:18]} 22. g4 {[%emt 0:03:33]} (22. Qd2 {simplifies} Qe7 23. Nc2 Rb7 24. Ba3) 22... gxf5 {[%emt 0:03:53]} (22... Qxh4 $2 23. f6 $18) 23. gxf5 {[%emt 0:04:09]} Qxh4 $2 {[%emt 0:00:49][%mdl 8192]} (23... Kh8 $15 {keeps the upper hand.}) 24. f6 $1 $18 {[%emt 0:01:31]} Nxe4 $2 {[%emt 0:04:44]} (24... Bxf6 $2 25. Ng2 $18) (24... Bd7 25. Qg2 Qxh3+ 26. Qxh3 Bxh3 27. Kxh3 Ne6 28. fxg7 Kxg7) 25. dxe4 $18 {[%emt 0:00:49]} Bxe4 {[%emt 0:00:02]} 26. Qf2 {[%emt 0:05:07]} (26. Qxa4 Bh6 (26... Bxf6 27. Qd1 $15) 27. Qd1 Bxc1 28. Qxc1 Kh8 $17) 26... Qxf2+ {[%emt 0:00:06]} 27. Rxf2 {[%emt 0:00:03]} Bh8 {[%emt 0:00:09]} 28. Bh6 {[%emt 0:01:20]} a3 {[%emt 0:01:39]} 29. Bxf8 {[%emt 0:02:03]} Rb2 {[%emt 0:00:06] [#]} 30. Kg1 {[%emt 0:03:19]} ({Wrong is} 30. Rxb2 $2 axb2 31. Rd1 Kxf8 $19) (30. Bxd6 $1 $18 Rxf2+ 31. Kg3 Rxf6 32. Bxe5) 30... Kxf8 $16 {[%emt 0:00:07]} 31. Bf1 {[%emt 0:02:32]} Rxf2 {[%emt 0:00:37]} 32. Kxf2 {[%emt 0:00:09]} Bxf6 {[%emt 0:00:01]} 33. Bd3 $1 {[%emt 0:04:43]} Bc6 {[%emt 0:00:02]} 34. Bxh7 {[%emt 0:04:29]} e4 {[%emt 0:00:01]} 35. Rb1 {[%emt 0:03:05]} d3 {[%emt 0:00:17]} 36. Nxd3 {[%emt 0:01:53]} exd3 {[%emt 0:00:02]} 37. Bxd3 {[%emt 0:00:19]} Bb2 {[%emt 0:01:53]} 38. Ke3 {[%emt 0:00:34]} Bd7 {[%emt 0:00:47]} 39. Be4 {[%emt 0:00:48]} Be6 {[%emt 0:07:44]} 40. Bd5 {[%emt 0:00:08]} Bf5 {[%emt 0:00:01]} 41. Rf1 {[%emt 0:00:38]} Bc2 {[%emt 0:00:02]} (41... Bg6 $16 {was called for.} 42. Be4 Bh5) 42. Rxf7+ {[%emt 0:01:44]} (42. Bxf7 $18 {Strongly threatening Bg6+.} Ke7 43. Kd2) 42... Ke8 $16 {[%emt 0:00:02]} 43. Kd2 {[%emt 0:00:39]} Bb3 {[%emt 0:02:33]} 44. Rb7 {[%emt 0:00:13]} (44. axb3 a2 45. Ra7 a1=Q 46. Rxa1 Bxa1 $11) 44... Bxa2 {[%emt 0:00:01]} 45. Kc2 {[%emt 0:00:06]} Kd8 {[%emt 0:00:38]} 46. Be6 {[%emt 0:00:41]} Ke8 {[%emt 0:00:18]} 47. Ra7 {[%emt 0:00:16]} Kf8 {[%emt 0:00:46]} 48. Bd5 {[%emt 0:00:35]} Ke8 {[%emt 0:00:23] [#]} 49. Bc6+ $1 {[%emt 0:00:05]} Kd8 {[%emt 0:01:47]} 50. Bb5 {[%emt 0:00:09]} Kc8 {[%emt 0:00:02] [#]} 51. Ra6 {[%emt 0:00:15]} ({Better is} 51. Rh7 $1 $16) 51... Kc7 $11 {[%emt 0:00:28]} 52. Rc6+ {[%emt 0:00:44]} Kd7 {[%emt 0:00:02]} 53. Rb6+ {[%emt 0:00:21]} Kc7 {[%emt 0:02:38]} 54. Ra6 {[%emt 0:00:06]} d5 {[%emt 0:00:02]} 55. c5 {[%emt 0:00:23]} Bc4 {[%emt 0:00:46]} 56. Bxc4 {[%emt 0:01:46]} dxc4 {[%emt 0:00:01]} 57. Rxa3 {[%emt 0:00:17]} 1/2-1/2

[Event "LR Global GM Aspirant-1 2024"]
[Site "Dhaka"]
[Date "2024.02.16"]
[Round "5.3"]
[White "Murshed, Niaz"]
[Black "Mohammad Fahad, Rahman"]
[Result "1/2-1/2"]
[ECO "D02"]
[WhiteElo "2363"]
[BlackElo "2418"]
[Annotator "RC"]
[PlyCount "68"]
[EventDate "2024.02.12"]
[EventType "tourn"]
[EventCountry "BAN"]
[SourceTitle "playchess.com"]
[Source "ChessBase"]
[SourceQuality "1"]
[TimeControl "5400+30"]

1. Nf3 {[%emt 0:00:17]} d5 {[%emt 0:00:33]} 2. d4 {[%emt 0:01:15]} Nf6 {[%emt 0:00:25]} 3. Bf4 {[%emt 0:02:51]} c5 {[%emt 0:00:33]} 4. e3 {[%emt 0:00:05]} Nc6 {[%emt 0:00:27]} 5. Nc3 {[%emt 0:02:37]} Bg4 {[%emt 0:08:24]} 6. Be2 {[%emt 0:05:30]} e6 {[%emt 0:02:02]} 7. Ne5 {[%emt 0:09:25]} Bxe2 {[%emt 0:09:39]} 8. Nxe2 {[%emt 0:00:06]} cxd4 {[%emt 0:07:54]} 9. exd4 {[%emt 0:01:14]} Bd6 {[%emt 0:00:45]} 10. O-O {[%emt 0:07:08]} O-O {[%emt 0:00:39]} 11. c3 {[%emt 0:05:49]} Bxe5 {[%emt 0:03:12]} 12. Bxe5 {[%emt 0:00:07]} Nxe5 {[%emt 0:00:36]} 13. dxe5 {[%emt 0:00:04]} Nd7 {[%emt 0:00:05]} 14. Qd4 {[%emt 0:00:23]} Qa5 {[%emt 0:03:55]} 15. b3 {[%emt 0:01:52]} Rac8 {[%emt 0:01:09]} 16. a4 {[%emt 0:03:00]} Qa6 {[%emt 0:02:34]} 17. Rfe1 {[%emt 0:04:31]} Rc6 {[%emt 0:02:12]} 18. c4 {[%emt 0:03:30]} Nc5 {[%emt 0:03:12]} 19. cxd5 {[%emt 0:01:02]} Nxb3 {[%emt 0:01:23]} 20. Qd1 {[%emt 0:04:04]} Rb6 {[%emt 0:02:48]} 21. Ra3 {[%emt 0:10:13]} Qa5 {[%emt 0:04:25]} 22. d6 {[%emt 0:02:40]} f6 {[%emt 0:03:16]} 23. Nc1 {[%emt 0:05:47]} Nxc1 {[%emt 0:04:43]} 24. Qxc1 {[%emt 0:00:44]} fxe5 {[%emt 0:00:48]} 25. Rd3 {[%emt 0:06:04]} Rc6 {[%emt 0:03:47]} 26. Qd1 {[%emt 0:00:35]} Rc4 {[%emt 0:04:58]} 27. d7 {[%emt 0:05:15]} Rd8 {[%emt 0:00:29]} 28. h3 {[%emt 0:07:59]} Rxa4 {[%emt 0:09:20]} 29. Rxe5 {[%emt 0:01:26]} Qxe5 {[%emt 0:00:37]} 30. Qxa4 {[%emt 0:00:09]} a6 {[%emt 0:05:08]} 31. Qc4 {[%emt 0:01:21]} Qe1+ {[%emt 0:04:42]} 32. Kh2 {[%emt 0:00:09]} Qe5+ {[%emt 0:00:12]} 33. Kg1 {[%emt 0:01:48]} Qe1+ {[%emt 0:00:26]} 34. Kh2 {[%emt 0:00:05]} Qe5+ {[%emt 0:00:05]} 1/2-1/2

[Event "LR Global GM Aspirant-1 2024"]
[Site "Dhaka"]
[Date "2024.02.16"]
[Round "5.4"]
[White "Barua, Dibyendu"]
[Black "Panesar Vedant"]
[Result "0-1"]
[ECO "C55"]
[WhiteElo "2404"]
[BlackElo "2452"]
[Annotator "TA"]
[PlyCount "76"]
[EventDate "2024.02.12"]
[EventType "tourn"]
[EventCountry "BAN"]
[SourceTitle "playchess.com"]
[Source "ChessBase"]
[SourceQuality "1"]
[TimeControl "5400+30"]

{[%evp 10,76,41,20,32,14,16,20,23,21,46,53,44,36,28,25,27,0,0,-49,-45,-1593,1439,425,1486,-49,-64,-48,-40,-77,-53,-120,-121,-128,-122,-135,-143,-121,-85,-165,-154,-164,-158,-168,-158,-155,-160,-223,-210,-329,-318,-319,-308,-317,-325,-325,-311,-320,-256,-377,-382,-385,-245,-263,-261,-277,-273,-275,-272]} 1. e4 {[%emt 0:00:44]} e5 {[%emt 0:00:16]} 2. Bc4 {[%emt 0:00:59]} Nf6 {[%emt 0:00:09]} 3. d3 {[%emt 0:00:07]} Nc6 {[%emt 0:00:07]} 4. Nf3 {[%emt 0:00:16][%cal Bg1f3,Bf3d2,Bd2f1][%mdl 32]} h6 {[%emt 0:00:08]} 5. O-O {[%emt 0:00:50]} d6 {[%emt 0:00:07]} 6. c3 {[%emt 0:00:35]} g5 {[%emt 0:00:08]} 7. Re1 {[%emt 0:05:08]} g4 {[%emt 0:00:16]} 8. Nfd2 {[%emt 0:01:03]} h5 {[%emt 0:00:18] The position is equal.} 9. Nf1 {[%emt 0:00:13]} Bh6 {[%emt 0:07:34]} 10. Bxh6 {[%emt 0:08:12]} Rxh6 {[%emt 0:00:04]} 11. d4 {[%emt 0:00:13]} h4 {[%emt 0:01:20]} 12. Bb5 {[%emt 0:12:10]} Bd7 {[%emt 0:02:20]} 13. Bxc6 {[%emt 0:14:09]} Bxc6 {[%emt 0:00:50]} 14. dxe5 {[%emt 0:00:02]} (14. Nbd2 $11) 14... dxe5 $15 {[%emt 0:00:13] aiming for ...Qxd1.} (14... Nxe4 $6 15. Nbd2 (15. Qxg4 $2 Rg6 $19) 15... d5 (15... Nxd2 16. Qxd2 Rg6 17. exd6+ Kf8 18. dxc7 $16) 16. Nxe4 (16. Qxg4 Rg6 $14) 16... dxe4 17. Qxg4 $14) 15. Qd3 {[%emt 0:53:19][%mdl 8192] [#]} Qd5 $4 {[%mdl 8192]} 16. Qxd5 {[%emt 0:00:00]} (16. exd5 $142 Bxd5 17. Rxe5+ Be6 18. Qe3) 16... Rc8 {[%emt 1:24:40] [#]} (16... Nxd5 $142 17. exd5 Bxd5 18. Rxe5+ Be6) 17. Qd8+ $2 Rxd8 {[%emt 0:00:00]} 18. Nbd2 {[%emt 0:00:00]} h3 {[%emt 0:00:00] ...hxg2 is the strong threat.} 19. g3 {[%emt 0:00:00]} Bb5 {[%emt 0:00:00] Black has more active pieces.} 20. a4 {[%emt 0:00:00] [#]} ({Better is} 20. c4 $15 Bc6 21. b4) 20... Bxf1 $1 $17 {[%emt 0:00:00]} 21. Nxf1 {[%emt 0:00:00]} Nh7 {[%emt 0:00:00]} 22. Ne3 {[%emt 0:00:00] [#]} Ng5 $1 {[%emt 0:00:00]} 23. Red1 {[%emt 0:00:00]} (23. Nxg4 $2 Nf3+ 24. Kf1 Rg6 $19 (24... Rb6 25. Re3 $15)) 23... Nf3+ {[%emt 0:00:00]} 24. Kf1 {[%emt 0:00:00]} (24. Kh1 $17 {keeps fighting.}) 24... Rhd6 $19 {[%emt 0:00:00]} (24... Nxh2+ 25. Ke2 Rb6 26. Rxd8+ Kxd8 27. b4 $11) 25. Rxd6 {[%emt 0:00:00]} Rxd6 {[%emt 0:00:00]} (25... Nxh2+ 26. Ke2 Rxd6 27. Rh1 $16) 26. Nxg4 $17 {[%emt 0:00:00][%mdl 4096] Endgame. KRN-KRN} Rd2 {[%emt 0:00:00][%cal Oe8e7]} 27. b4 {[%emt 0:00:00]} Ke7 {[%emt 0:00:00][%mdl 1024] Black has strong compensation.} 28. Ra3 {[%emt 0:00:00]} (28. c4 $17) 28... Rb2 $19 {[%emt 0:00:00]} 29. b5 {[%emt 0:00:00]} (29. c4 $142 Nd2+ 30. Ke1 Nxc4 31. Ra1) 29... Ke6 {[%emt 0:00:00]} 30. c4 {[%emt 0:00:00]} Nd2+ {[%emt 0:00:00]} 31. Ke1 {[%emt 0:00:00]} Nxe4 {[%emt 0:00:00]} (31... Nxc4 32. Rf3 $17) 32. Rf3 {[%emt 0:01:42]} Ra2 {[%emt 0:00:00]} (32... f5 33. Nh6 $17) 33. Nh6 {[%emt 0:00:49]} f6 {[%emt 0:00:00]} (33... Rxa4 34. Nxf7 Rxc4 35. Nd8+ Kd5 36. Nxb7 $11) 34. g4 {[%emt 0:01:28]} (34. Re3 $142 Nxf2 35. a5) 34... Ng5 {[%emt 0:00:00]} (34... Rxa4 35. Rxh3 Rxc4 36. Rh5 $19) 35. Re3 {[%emt 0:05:22]} Kd6 {[%emt 0:00:00][%cal Oe5e4] And now ...e4! would win.} ({Less strong is} 35... Rxa4 36. f4 Nh7 (36... Ra1+ 37. Kf2 $11) 37. Nf5 $17) 36. Ng8 {[%emt 0:00:25]} Rxa4 {[%emt 0:00:00] Black has a decisive advantage.} 37. Nxf6 {[%emt 0:00:05][%cal Of2f4]} Rxc4 {[%emt 0:00:00]} 38. Ne8+ {[%emt 0:00:52]} Kd7 {[%emt 0:00:00] Weighted Error Value: White=0.79/Black=0.12 (very precise) .  Loses game:     	White=1     	---        Missed win:     	---       	Black=1      Mistake:       	White=7     	---        Inaccurate:     	White=2     	Black=1      OK:         	White=8     	Black=15     Best:        	White=2     	Black=2      Strong:       	---       	Black=1} 0-1

[Event "LR Global GM Aspirant-1 2024"]
[Site "Dhaka"]
[Date "2024.02.16"]
[Round "6.2"]
[White "Panesar Vedant"]
[Black "Rahman, Ziaur"]
[Result "1/2-1/2"]
[ECO "B45"]
[WhiteElo "2452"]
[BlackElo "2428"]
[Annotator "TA"]
[PlyCount "36"]
[EventDate "2024.02.12"]
[EventType "tourn"]
[EventCountry "BAN"]
[SourceTitle "playchess.com"]
[Source "ChessBase"]
[SourceQuality "1"]
[TimeControl "5400+30"]

{[%evp 11,36,0,7,0,9,2,-1,-2,0,-23,-18,-19,-13,-6,-4,-40,-26,-27,-13,-38,-22,-31,13,-47,14,-51,14]} 1. e4 {[%emt 0:00:03]} c5 {[%emt 0:01:41]} 2. Nf3 {[%emt 0:00:14]} e6 {[%emt 0:01:00]} 3. d4 {[%emt 0:00:09]} cxd4 {[%emt 0:00:03]} 4. Nxd4 {[%emt 0:00:08]} Nf6 {[%emt 0:01:59]} 5. Nc3 {[%emt 0:00:18]} Nc6 {[%emt 0:00:06]} 6. a3 {[%emt 0:00:35]} Be7 {[%emt 0:00:40]} 7. Nxc6 {[%emt 0:00:09]} bxc6 {[%emt 0:00:05]} 8. e5 {[%emt 0:00:05]} Nd5 {[%emt 0:00:04] Threatening ...Nxc3.} 9. Qg4 {[%emt 0:00:17] The position is equal.} g6 {[%emt 0:00:21]} 10. Ne4 {[%emt 0:02:42]} f5 {[%emt 0:01:37]} 11. exf6 {[%emt 0:02:07]} Nxf6 {[%emt 0:00:27]} 12. Nxf6+ {[%emt 0:00:05]} Bxf6 {[%emt 0:00:14]} 13. Bd3 {[%emt 0:00:02]} O-O {[%emt 0:00:10]} 14. O-O {[%emt 0:00:04]} Rf7 {[%emt 0:00:21]} 15. c3 {[%emt 0:00:06]} a5 {[%emt 0:00:25]} 16. Bh6 {[%emt 0:00:01][%cal Oh2h4]} Bg7 {[%emt 0:00:04]} 17. Bg5 {[%emt 0:00:01]} (17. Bxg7 $11 Kxg7 18. Rae1) 17... Bf6 {[%emt 0:00:09]} ({Black should play} 17... Qc7 $15) 18. Bh6 {[%emt 0:00:01]} ({White should try} 18. Bxf6 $11 Qxf6 19. f4) 18... Bg7 {[%emt 0:00:05] Weighted Error Value: White=0.26 (precise) /Black=0.21 (precise) .  Mistake:       	White=2     	Black=2      Inaccurate:     	White=1     	Black=1      OK:         	White=2     	Black=2      Best:        	White=1     	---} (18... d5 $15) 1/2-1/2

[Event "LR Global GM Aspirant-1 2024"]
[Site "Dhaka"]
[Date "2024.02.16"]
[Round "6.3"]
[White "Mohammad Fahad, Rahman"]
[Black "Barua, Dibyendu"]
[Result "1/2-1/2"]
[ECO "E01"]
[WhiteElo "2418"]
[BlackElo "2404"]
[Annotator "RC"]
[PlyCount "134"]
[EventDate "2024.02.12"]
[EventType "tourn"]
[EventCountry "BAN"]
[SourceTitle "playchess.com"]
[Source "ChessBase"]
[SourceQuality "1"]
[TimeControl "5400+30"]

1. d4 {[%emt 0:00:10]} d5 {[%emt 0:07:53]} 2. c4 {[%emt 0:00:13]} e6 {[%emt 0:00:16]} 3. Nc3 {[%emt 0:00:21]} Nf6 {[%emt 0:00:47]} 4. Nf3 {[%emt 0:00:37]} c6 {[%emt 0:07:54]} 5. g3 {[%emt 0:00:43]} Nbd7 {[%emt 0:00:53]} 6. Bg2 {[%emt 0:00:40]} Bd6 {[%emt 0:02:42]} 7. O-O {[%emt 0:01:26]} O-O {[%emt 0:00:30]} 8. b3 {[%emt 0:04:01]} Qe7 {[%emt 0:14:08]} 9. Qc2 {[%emt 0:06:26]} Re8 {[%emt 0:07:30]} 10. Bb2 {[%emt 0:01:43]} Ba3 {[%emt 0:06:18]} 11. Bxa3 {[%emt 0:04:32]} Qxa3 {[%emt 0:00:03]} 12. e4 {[%emt 0:00:15]} dxe4 {[%emt 0:04:09]} 13. Nxe4 {[%emt 0:00:37]} Nxe4 {[%emt 0:01:00]} 14. Qxe4 {[%emt 0:00:04]} Nf6 {[%emt 0:00:20]} 15. Qf4 {[%emt 0:06:47]} Rd8 {[%emt 0:03:24]} 16. Rfd1 {[%emt 0:02:27]} Bd7 {[%emt 0:04:23]} 17. Ne5 {[%emt 0:03:36]} Be8 {[%emt 0:01:51]} 18. Qh4 {[%emt 0:21:29]} Nd7 {[%emt 0:10:57]} 19. Ng4 {[%emt 0:00:59]} Nf8 {[%emt 0:01:46]} 20. Ne3 {[%emt 0:01:51]} Ng6 {[%emt 0:05:04]} 21. Qe4 {[%emt 0:01:50]} Qe7 {[%emt 0:00:14]} 22. h4 {[%emt 0:00:55]} f5 {[%emt 0:09:49]} 23. Qf3 {[%emt 0:03:52]} Qf6 {[%emt 0:01:07]} 24. Nc2 {[%emt 0:06:40]} e5 {[%emt 0:02:08]} 25. Ne3 {[%emt 0:11:13]} exd4 {[%emt 0:00:47]} 26. Nxf5 {[%emt 0:00:16]} Ne5 {[%emt 0:01:58]} 27. Qf4 {[%emt 0:00:21]} d3 {[%emt 0:00:55]} 28. c5 {[%emt 0:00:48]} Bh5 {[%emt 0:00:58]} 29. f3 {[%emt 0:00:58]} Rf8 {[%emt 0:01:22]} 30. Re1 {[%emt 0:04:12]} Nxf3+ {[%emt 0:02:02]} 31. Bxf3 {[%emt 0:00:17]} Bxf3 {[%emt 0:00:02]} 32. Qxf3 {[%emt 0:03:06]} Qxf5 {[%emt 0:00:02]} 33. Qxf5 {[%emt 0:00:17]} Rxf5 {[%emt 0:00:06]} 34. Rad1 {[%emt 0:00:05]} Rd8 {[%emt 0:00:51]} 35. b4 {[%emt 0:00:31]} h5 {[%emt 0:01:34]} 36. Rd2 {[%emt 0:01:17]} Rd4 {[%emt 0:00:46]} 37. a3 {[%emt 0:00:53]} Kf7 {[%emt 0:01:17]} 38. Re3 {[%emt 0:00:22]} Rfd5 {[%emt 0:00:02]} 39. Kf2 {[%emt 0:00:06]} Kf6 {[%emt 0:00:41]} 40. Re8 {[%emt 0:01:16]} Rd8 {[%emt 0:01:17]} 41. Re3 {[%emt 0:01:07]} R8d7 {[%emt 0:00:22]} 42. Ke1 {[%emt 0:00:21]} Kg6 {[%emt 0:00:28]} 43. Rf2 {[%emt 0:00:13]} Rc4 {[%emt 0:00:17]} 44. Kd1 {[%emt 0:00:45]} Rc3 {[%emt 0:00:07]} 45. Re6+ {[%emt 0:00:15]} Kh7 {[%emt 0:00:11]} 46. Rf5 {[%emt 0:00:08]} Rxa3 {[%emt 0:00:43]} 47. Rxh5+ {[%emt 0:00:42]} Kg8 {[%emt 0:00:02]} 48. Rf5 {[%emt 0:01:10]} d2 {[%emt 0:00:26]} 49. Rd6 {[%emt 0:00:05]} Rxd6 {[%emt 0:00:06]} 50. cxd6 {[%emt 0:00:02]} Rd3 {[%emt 0:00:02]} 51. Re5 {[%emt 0:00:31]} Rxd6 {[%emt 0:01:33]} 52. Re7 {[%emt 0:00:01]} b6 {[%emt 0:01:32]} 53. Rxa7 {[%emt 0:00:02]} Kh7 {[%emt 0:00:06]} 54. Rb7 {[%emt 0:07:23]} b5 {[%emt 0:00:36]} 55. Rc7 {[%emt 0:00:14]} Kh6 {[%emt 0:00:49]} 56. g4 {[%emt 0:00:14]} g6 {[%emt 0:00:36]} 57. Re7 {[%emt 0:04:06]} Rd4 {[%emt 0:00:31]} 58. g5+ {[%emt 0:00:08]} Kh5 {[%emt 0:00:01]} 59. Rh7+ {[%emt 0:00:02]} Kg4 {[%emt 0:00:10]} 60. Rh6 {[%emt 0:00:02]} Rd6 {[%emt 0:01:24]} 61. Rh8 {[%emt 0:01:55]} Kf5 {[%emt 0:00:26]} 62. Rf8+ {[%emt 0:00:06]} Ke5 {[%emt 0:00:29]} 63. Rf2 {[%emt 0:00:09]} Rd4 {[%emt 0:00:21]} 64. Rf6 {[%emt 0:00:08]} Rxh4 {[%emt 0:00:24]} 65. Rxc6 {[%emt 0:00:24]} Rxb4 {[%emt 0:00:38]} 66. Rxg6 {[%emt 0:00:05]} Kf5 {[%emt 0:00:33]} 67. Rb6 {[%emt 0:00:10]} Ke5 {[%emt 0:00:37]} 1/2-1/2

[Event "LR Global GM Aspirant-1 2024"]
[Site "Dhaka"]
[Date "2024.02.16"]
[Round "6.4"]
[White "Siddharth, Jagadeesh"]
[Black "Murshed, Niaz"]
[Result "1/2-1/2"]
[ECO "C50"]
[WhiteElo "2457"]
[BlackElo "2363"]
[Annotator "TA"]
[PlyCount "104"]
[EventDate "2024.02.12"]
[EventType "tourn"]
[EventCountry "BAN"]
[SourceTitle "playchess.com"]
[Source "ChessBase"]
[SourceQuality "1"]
[TimeControl "5400+30"]

{[%evp 19,104,19,35,0,0,0,18,16,21,11,45,27,61,70,52,28,41,0,41,11,16,27,31,16,14,26,12,13,17,29,37,43,37,33,54,51,46,44,47,0,0,0,0,0,0,0,0,0,33,29,28,32,32,26,83,83,83,83,83,83,83,83,83,83,83,83,83,83,83,83,83,83,83,83,83,83,83,83,83,83,83,72,91,58,58,58,58]} 1. e4 {[%emt 0:00:04]} e5 {[%emt 0:07:20]} 2. Nf3 {[%emt 0:00:15]} Nc6 {[%emt 0:00:05]} 3. Bc4 {[%emt 0:00:07]} Bc5 {[%emt 0:00:14]} 4. Nc3 {[%emt 0:00:10]} Nf6 {[%emt 0:00:40]} 5. d3 {[%emt 0:00:30]} h6 {[%emt 0:00:30]} 6. O-O {[%emt 0:00:00]} O-O {[%emt 0:04:29]} 7. h3 {[%emt 0:00:00]} Re8 {[%emt 0:03:10]} 8. a3 {[%emt 0:02:12]} a6 {[%emt 0:00:54] C50: Hungarian Defence and Giuoco Pianissimo.} 9. Be3 {[%emt 0:03:59]} Bf8 {[%emt 0:07:41]} 10. Re1 {[%emt 0:02:41]} d6 {[%emt 0:00:25]} 11. d4 $146 {[%emt 0:07:05]} ({Predecessor:} 11. Nd5 Nxd5 12. Bxd5 Ne7 13. Ba2 Ng6 14. d4 exd4 15. Bxd4 Be6 16. Bd5 c6 17. Bxe6 Rxe6 {0-1 Alekseenko,K (2707)-Anton Guijarro,D (2662) ESP-chT CECLUB Honor 2022 (5.1)}) 11... b5 {[%emt 0:11:43]} 12. Ba2 {[%emt 0:00:13]} Bb7 {[%emt 0:00:04]} 13. d5 {[%emt 0:00:30]} Ne7 {[%emt 0:00:30]} 14. Nd2 {[%emt 0:00:35]} c6 {[%emt 0:02:16]} 15. dxc6 {[%emt 0:00:30]} Bxc6 {[%emt 0:00:30]} 16. Qf3 {[%emt 0:01:56]} Ng6 $1 {[%emt 0:09:23]} 17. Rad1 {[%emt 0:02:39]} (17. Qg3 $5) 17... Qe7 {[%emt 0:03:27]} 18. h4 {[%emt 0:07:19]} Bd7 {[%emt 0:07:46]} ({But not} 18... Nxh4 $6 19. Qg3 $16) 19. Nd5 {[%emt 0:05:24]} Nxd5 {[%emt 0:00:18]} 20. Bxd5 {[%emt 0:00:04]} Rac8 {[%emt 0:01:06]} 21. h5 {[%emt 0:14:32]} Nf4 $1 {[%emt 0:00:26]} 22. Bxf4 {[%emt 0:00:30]} exf4 {[%emt 0:00:30]} 23. Qxf4 {[%emt 0:00:00]} Rxc2 {[%emt 0:00:47]} 24. Nf3 {[%emt 0:00:24]} Qf6 (24... Rxb2 $2 {perishes.} 25. Qc1 $18) 25. Qxf6 {[%emt 0:00:30]} gxf6 {[%emt 0:01:00]} 26. b3 {[%emt 0:00:30]} Be7 {[%emt 0:00:30]} 27. Nd4 {[%emt 0:07:02]} Rc3 {[%emt 0:11:41]} 28. Ne2 {[%emt 0:04:10]} Rc2 {[%emt 0:01:04]} 29. Nf4 {[%emt 0:00:04]} (29. b4 $14) 29... Kf8 $11 {[%emt 0:03:39]} 30. b4 {[%emt 0:10:29]} Rec8 {[%emt 0:00:39]} 31. Bb3 {[%emt 0:00:59]} Rb2 {[%emt 0:03:39]} 32. Rd3 {[%emt 0:00:40]} Rc6 {[%emt 0:04:07]} 33. Red1 {[%emt 0:04:18]} Bd8 {[%emt 0:08:16]} 34. Rxd6 {[%emt 0:06:05]} Rxd6 {[%emt 0:00:17]} 35. Rxd6 {[%emt 0:00:03]} Bc7 {[%emt 0:00:26]} 36. Rxd7 {[%emt 0:00:09]} Rb1+ {[%emt 0:00:06]} (36... Bxf4 $11 {remains equal.} 37. Rxf7+ Ke8) 37. Rd1 $16 {[%emt 0:02:22]} Rxd1+ {[%emt 0:00:26]} 38. Bxd1 {[%emt 0:00:05]} Bxf4 {[%emt 0:00:02]} 39. a4 {[%emt 0:00:07]} bxa4 {[%emt 0:00:40]} 40. Bxa4 {[%emt 0:00:09]} Bd2 {[%emt 0:00:05]} 41. b5 {[%emt 0:00:05]} axb5 {[%emt 0:00:12]} 42. Bxb5 {[%emt 0:00:04]} Ke7 {[%emt 0:01:21]} 43. Bc4 {[%emt 0:00:06]} Bc1 {[%emt 0:00:52]} 44. Kf1 {[%emt 0:00:09]} Bb2 {[%emt 0:01:50]} 45. Ke2 {[%emt 0:00:06]} Bd4 {[%emt 0:00:15]} 46. f4 {[%emt 0:00:08]} Bb2 {[%emt 0:00:34]} 47. Kf3 {[%emt 0:00:40]} Bc3 {[%emt 0:00:45]} 48. Kg4 {[%emt 0:00:06]} Bb2 {[%emt 0:00:38]} 49. Kf5 {[%emt 0:00:07]} Bc3 {[%emt 0:00:08]} 50. g4 {[%emt 0:00:19]} Bd2 {[%emt 0:00:16]} 51. e5 {[%emt 0:00:31]} fxe5 {[%emt 0:00:05]} 52. Kxe5 {[%emt 0:00:04]} f6+ {[%emt 0:01:23]} 1/2-1/2